bitfinex-derivatives/quotes_BTCF0:USTF0_20250718
["timestamp","ask_amount","ask_price","bid_price","bid_amount"]
[1752812078373,0.7509062,119970.0,119960.0,1.20645934]
[1752812078674,0.58432,119970.0,119960.0,1.20645934]
[1752812079173,0.58432,119970.0,119960.0,1.45654347]
[1752812079369,0.7509062,119970.0,119960.0,1.45654347]
[1752812079774,0.7509062,119970.0,119960.0,1.20645934]
[1752812080073,1.34266272,119970.0,119960.0,0.30082]
[1752812080274,1.34266272,119970.0,119960.0,0.69489423]
[1752812080774,1.34266335,119970.0,119960.0,0.69489423]
[1752812081373,1.34366335,119970.0,119960.0,0.69489423]
[1752812081567,0.98386335,119970.0,119960.0,0.69489423]
[1752812081768,0.08755715,119970.0,119960.0,0.96758836]
[1752812081974,0.61530715,119970.0,119960.0,1.32838836]
[1752812082773,0.03106715,119970.0,119960.0,1.32838836]
[1752812082969,0.01740715,119970.0,119960.0,1.32838836]
[1752812083175,0.5842,119970.0,119960.0,1.37325577]
[1752812084176,0.5842,119970.0,119960.0,1.37425577]
[1752812084578,0.5842,119970.0,119960.0,1.32938836]
[1752812085078,0.5842,119970.0,119960.0,1.33038836]
[1752812085670,0.5842,119970.0,119960.0,1.30954836]
[1752812086476,0.964337,119970.0,119960.0,1.05946423]
[1752812086676,0.964337,119970.0,119960.0,0.74362007]
[1752812087383,0.79775,119970.0,119960.0,0.74362007]
[1752812087577,0.74456,119970.0,119960.0,0.74362007]
[1752812087776,0.74456,119970.0,119960.0,0.67594007]
[1752812088187,0.74456,119970.0,119960.0,0.42585594]
[1752812088482,0.74556,119970.0,119960.0,0.67594007]
[1752812089283,0.74556,119970.0,119960.0,0.67494007]
[1752812089480,0.74556,119970.0,119960.0,0.62998423]
[1752812090184,0.74656,119970.0,119960.0,0.62998423]
[1752812091379,0.74656,119970.0,119960.0,0.67495019]
[1752812091775,0.74656,119970.0,119960.0,0.62998423]
[1752812093887,0.74656,119970.0,119960.0,0.68982135]
[1752812095682,0.74656,119970.0,119960.0,0.62998423]
[1752812095877,0.74656,119970.0,119960.0,0.68982135]
[1752812096289,0.74656,119970.0,119960.0,0.62998423]
[1752812097094,0.16236,119970.0,119960.0,0.62998423]
[1752812097296,0.74632,119970.0,119960.0,0.68982135]
[1752812097688,0.16236,119970.0,119960.0,0.68982135]
[1752812097889,0.74632,119970.0,119960.0,0.68982135]
[1752812098090,0.74628,119970.0,119960.0,0.68982135]
[1752812098296,0.16236,119970.0,119960.0,0.68982135]
[1752812098594,0.74628,119970.0,119960.0,0.68982135]
[1752812098794,0.79728,119970.0,119960.0,0.68982135]
[1752812099094,0.21336,119970.0,119960.0,0.68982135]
[1752812099494,0.79728,119970.0,119960.0,0.68982135]
[1752812100695,0.74628,119970.0,119960.0,0.68982135]
[1752812100889,0.16236,119970.0,119960.0,0.62998423]
[1752812101095,1.3246675,119970.0,119960.0,0.65234268]
[1752812101297,1.44909326,119970.0,119960.0,0.39037975]
[1752812101490,1.44909326,119970.0,119960.0,0.2295313]
[1752812101690,1.44909326,119970.0,119960.0,0.27450228]
[1752812102396,1.44909326,119970.0,119960.0,0.32347228]
[1752812102590,0.69858576,119970.0,119960.0,0.67672641]
[1752812102795,0.12642576,119970.0,119960.0,1.24263956]
[1752812102993,0.58584,119970.0,119960.0,1.30247668]
[1752812104299,0.58484,119970.0,119960.0,1.30247668]
[1752812104694,0.58384,119970.0,119960.0,1.30247668]
[1752812105903,0.39616,119980.0,119970.0,0.3795575]
[1752812106105,1.01007,119980.0,119970.0,0.67461647]
[1752812106295,1.19907499,119980.0,119970.0,0.67461647]
[1752812107096,1.36564859,119980.0,119970.0,0.67461647]
[1752812107402,1.41764859,119980.0,119970.0,0.67461647]
[1752812107601,1.23360065,119980.0,119970.0,0.67461647]
[1752812107802,1.23460065,119980.0,119970.0,0.67461647]
[1752812108101,1.18360065,119980.0,119970.0,0.67461647]
[1752812110402,1.20107968,119980.0,119970.0,0.67461647]
[1752812110800,1.24036968,119980.0,119970.0,0.67461647]
[1752812112603,0.65127,119980.0,119970.0,0.67461647]
[1752812112905,0.65127,119980.0,119970.0,0.62964163]
[1752812113298,0.66875464,119980.0,119970.0,0.67462772]
[1752812113897,0.71566464,119980.0,119970.0,0.67462772]
[1752812114696,0.66875464,119980.0,119970.0,0.67462772]
[1752812114902,0.002,119980.0,119970.0,1.62729562]
[1752812115098,0.002,119980.0,119970.0,1.05854665]
[1752812115298,0.002,119980.0,119970.0,1.05027875]
[1752812116901,1.17599,120000.0,119990.0,0.2460796]
[1752812117107,1.17599,120000.0,119990.0,1.28543905]
[1752812117108,0.03536,120000.0,119990.0,1.28543905]
[1752812117295,0.15989781,120010.0,120000.0,0.3795158]
[1752812117502,0.76088343,120010.0,120000.0,0.99039993]
[1752812117701,0.88538093,120010.0,120000.0,0.99039993]
[1752812118002,0.88538093,120010.0,120000.0,0.62959993]
[1752812118206,0.91891531,120010.0,120000.0,0.62959993]
[1752812118408,0.92591531,120010.0,120000.0,0.62959993]
[1752812118908,0.93091531,120010.0,120000.0,0.62959993]
[1752812119809,0.87991531,120010.0,120000.0,0.62959993]
[1752812120009,0.83300531,120010.0,120000.0,1.24048406]
[1752812120209,0.87925531,120010.0,120000.0,1.24048406]
[1752812120406,0.87925531,120010.0,120000.0,0.62959993]
[1752812120602,0.92813531,120010.0,120000.0,0.62959993]
[1752812120806,1.09466721,120010.0,120000.0,0.60594993]
[1752812121305,1.09466721,120010.0,120000.0,0.47745993]
[1752812121499,1.45546721,120010.0,120000.0,0.41662993]
[1752812121699,1.47290848,120010.0,120000.0,0.1665458]
[1752812122305,1.47290848,120010.0,120000.0,0.41662993]
[1752812122504,0.2488658,120000.0,119990.0,0.249827]
[1752812122703,0.7286658,120000.0,119990.0,0.249827]
[1752812122903,0.7286658,120000.0,119990.0,0.166551]
[1752812122904,0.85423642,120000.0,119990.0,0.166551]
[1752812123308,0.85423642,120000.0,119990.0,0.41663513]
[1752812123513,0.68769062,120000.0,119990.0,0.47414513]
[1752812123811,0.68969062,120000.0,119990.0,0.64572513]
[1752812124011,0.69269062,120000.0,119990.0,0.64572513]
[1752812124212,0.85923642,120000.0,119990.0,0.395641]
[1752812124513,0.87667357,120000.0,119990.0,0.43746513]
[1752812125306,0.87667357,120000.0,119990.0,0.187381]
[1752812125611,1.1267577,120000.0,119990.0,0.187381]
[1752812126512,0.87667357,120000.0,119990.0,0.187381]
[1752812128012,0.87667357,120000.0,119990.0,0.43746513]
[1752812129213,0.87667357,120000.0,119990.0,0.49497513]
[1752812129409,0.66124777,120000.0,119990.0,0.64572513]
[1752812129617,0.86633062,120000.0,119990.0,1.00652513]
[1752812129810,0.75608062,120000.0,119990.0,1.00652513]
[1752812130016,0.58832,120000.0,119990.0,1.25660926]
[1752812130317,0.58832,120000.0,119990.0,1.00652513]
[1752812130514,0.60012,120000.0,119990.0,1.00652513]
[1752812133308,0.8433058,120000.0,119990.0,1.00652513]
[1752812133614,0.9073058,120000.0,119990.0,1.00652513]
[1752812134611,0.9073058,120000.0,119990.0,0.756441]
[1752812134915,0.74076,120000.0,119990.0,1.00652513]
[1752812135616,0.9073058,120000.0,119990.0,1.00652513]
[1752812135819,0.9559058,120000.0,119990.0,0.374811]
[1752812136016,0.97286861,120000.0,119990.0,0.62489513]
[1752812136216,1.33366861,120000.0,119990.0,0.62489513]
[1752812137218,0.97286861,120000.0,119990.0,0.62489513]
[1752812137618,0.80632281,120000.0,119990.0,0.62489513]
[1752812137920,0.97286861,120000.0,119990.0,0.62489513]
[1752812138315,0.97286861,120000.0,119990.0,0.64572513]
[1752812138619,0.97286861,120000.0,119990.0,0.49497513]
[1752812138918,0.80632281,120000.0,119990.0,0.64572513]
[1752812139617,0.97286861,120000.0,119990.0,0.64572513]
[1752812140209,0.9559058,120000.0,119990.0,0.64572513]
[1752812140816,0.74076,120000.0,119990.0,0.64572513]
[1752812141313,0.9073058,120000.0,119990.0,1.00652513]
[1752812141521,0.9559058,120000.0,119990.0,0.395641]
[1752812141719,0.9559058,120000.0,119990.0,0.64572513]
[1752812142817,0.78936,120000.0,119990.0,0.395641]
[1752812143021,0.78936,120000.0,119990.0,0.64572513]
[1752812143022,0.9559058,120000.0,119990.0,0.64572513]
[1752812143422,0.9559058,120000.0,119990.0,0.395641]
[1752812143622,0.9559058,120000.0,119990.0,0.64572513]
[1752812144019,1.33368528,120000.0,119990.0,0.43747383]
[1752812144623,1.33368528,120000.0,119990.0,0.49498383]
[1752812145024,1.3167058,120000.0,119990.0,0.49498383]
[1752812145224,1.33368806,120000.0,119990.0,0.49498383]
[1752812145424,0.97288806,120000.0,119990.0,0.49498383]
[1752812145625,1.45789487,120000.0,119990.0,0.49498383]
[1752812145922,1.47675842,120000.0,119990.0,0.1873897]
[1752812146924,1.72684255,120000.0,119990.0,0.1873897]
[1752812148027,1.47675842,120000.0,119990.0,0.1873897]
[1752812148326,1.72684255,120000.0,119990.0,0.1873897]
[1752812148722,0.2502097,119990.0,119980.0,0.04494119]
[1752812148929,0.2502236,119980.0,119970.0,0.29480989]
[1752812149128,1.3091336,119980.0,119970.0,0.54489402]
[1752812149429,1.4340952,119980.0,119970.0,0.60031402]
[1752812150128,1.4350952,119980.0,119970.0,0.60031402]
[1752812150426,1.4350952,119980.0,119970.0,0.62413402]
[1752812150627,1.4350952,119980.0,119970.0,0.37404989]
[1752812150827,1.4350952,119980.0,119970.0,0.62413402]
[1752812151627,1.4350952,119980.0,119970.0,0.68314402]
[1752812151824,0.4248152,119980.0,119970.0,0.70901283]
[1752812152024,0.4248152,119980.0,119970.0,1.06981283]
[1752812152025,0.8445616,119980.0,119970.0,1.06981283]
[1752812152229,0.8445616,119980.0,119970.0,0.70901283]
[1752812152424,0.8435616,119980.0,119970.0,0.70901283]
[1752812152630,0.8455616,119980.0,119970.0,0.70901283]
[1752812152930,1.0121352,119980.0,119970.0,0.70901283]
[1752812153126,1.1753416,119980.0,119960.0,0.10449712]
[1752812153331,0.97455163,119970.0,119960.0,0.13609712]
[1752812153630,0.84980628,119970.0,119960.0,0.06578355]
[1752812153931,1.09989041,119970.0,119960.0,0.06578371]
[1752812154129,0.84980628,119970.0,119960.0,0.13246371]
[1752812154325,1.09989041,119970.0,119960.0,0.13246371]
[1752812154522,0.84980628,119970.0,119960.0,0.13246371]
[1752812154727,1.09989041,119970.0,119960.0,0.13246371]
[1752812155030,1.10089041,119970.0,119960.0,0.13246371]
[1752812156624,1.10089041,119970.0,119960.0,0.08752]
[1752812156625,1.11764602,119970.0,119960.0,0.08752]
[1752812157230,1.11864602,119970.0,119960.0,0.08752]
[1752812158223,0.86856189,119970.0,119960.0,0.06991]
[1752812158425,1.11864602,119970.0,119960.0,0.06991]
[1752812159530,1.11864602,119970.0,119940.0,0.07924]
[1752812159531,0.199904,119950.0,119940.0,0.07924]
[1752812159727,1.260864,119950.0,119940.0,0.12684]
[1752812159927,0.2385279,119940.0,119930.0,0.64157254]
[1752812160132,0.2973979,119940.0,119930.0,0.34982811]
[1752812160431,0.42237873,119940.0,119930.0,0.67072224]
[1752812160629,0.48820332,119940.0,119930.0,0.67072224]
[1752812161029,0.49674611,119940.0,119930.0,0.67072224]
[1752812161930,0.49674611,119940.0,119930.0,0.62577853]
[1752812162131,0.49674611,119940.0,119930.0,0.63077853]
[1752812162736,0.43787611,119940.0,119930.0,0.63077853]
[1752812162936,0.96793611,119940.0,119930.0,0.63077853]
[1752812163233,1.00122611,119940.0,119930.0,0.63077853]
[1752812164136,1.03281611,119940.0,119930.0,0.63077853]
[1752812164338,1.06009611,119940.0,119930.0,0.3098844]
[1752812164537,1.06009611,119940.0,119930.0,0.2984744]
[1752812164936,1.06009611,119940.0,119930.0,0.59211853]
[1752812165136,1.06009611,119940.0,119930.0,0.63077853]
[1752812169135,1.06109611,119940.0,119930.0,0.62777853]
[1752812169342,0.80210821,119940.0,119930.0,0.62777853]
[1752812169638,0.79356542,119940.0,119930.0,0.98657853]
[1752812169841,0.96119342,119940.0,119930.0,0.98657853]
[1752812170532,0.96019342,119940.0,119930.0,0.98657853]
[1752812170738,0.80190852,119940.0,119930.0,0.98657853]
[1752812170932,0.66842459,119940.0,119930.0,0.98657853]
[1752812171136,0.66742459,119940.0,119930.0,0.98657853]
[1752812171337,0.66742459,119940.0,119930.0,0.98757853]
[1752812172145,0.66742459,119940.0,119930.0,0.98857853]
[1752812173045,0.66742459,119940.0,119930.0,0.98757853]
[1752812173240,0.66742459,119940.0,119930.0,0.98957853]
[1752812175452,0.66742459,119940.0,119930.0,0.98857853]
[1752812175649,0.66742459,119940.0,119930.0,0.98957853]
[1752812175952,0.06582459,119940.0,119930.0,0.98957853]
[1752812176152,0.44123568,119950.0,119940.0,0.248848]
[1752812176350,1.04135568,119950.0,119940.0,0.62577213]
[1752812176551,1.16710293,119950.0,119940.0,0.62577213]
[1752812176949,0.56698293,119950.0,119940.0,0.62577213]
[1752812177152,1.16726293,119950.0,119940.0,0.62577213]
[1752812177346,0.56698293,119950.0,119940.0,0.62677213]
[1752812177552,0.79788725,119950.0,119940.0,0.98757213]
[1752812177950,0.75927725,119950.0,119940.0,0.98757213]
[1752812179244,0.12574725,119950.0,119940.0,0.62677213]
[1752812179448,0.72582725,119950.0,119940.0,0.98757213]
[1752812180151,0.19226091,119950.0,119940.0,0.98757213]
[1752812180352,0.66667366,119950.0,119940.0,0.98757213]
[1752812181053,0.66635366,119950.0,119940.0,0.98757213]
[1752812182648,0.06651366,119950.0,119940.0,0.98757213]
[1752812182853,1.17124515,119960.0,119950.0,0.3784541]
[1752812183053,1.77044515,119960.0,119950.0,0.98933823]
[1752812183248,1.89528531,119960.0,119950.0,0.98933823]
[1752812183450,1.89516531,119960.0,119950.0,0.98933823]
[1752812183750,1.89512531,119960.0,119950.0,0.98933823]
[1752812183952,1.77028515,119960.0,119950.0,0.98933823]
[1752812184152,1.77128515,119960.0,119950.0,0.98933823]
[1752812185056,1.77028515,119960.0,119950.0,0.98933823]
[1752812185457,1.77128515,119960.0,119950.0,0.98933823]
[1752812185960,0.61840515,119960.0,119950.0,0.98933823]
[1752812186161,0.64749515,119960.0,119950.0,0.99033823]
[1752812187657,0.61740515,119960.0,119950.0,0.99033823]
[1752812189057,0.01836515,119960.0,119950.0,0.99033823]
[1752812189262,0.61636515,119960.0,119950.0,0.99033823]
[1752812192661,0.01836515,119960.0,119950.0,0.99033823]
[1752812192859,0.61532515,119960.0,119950.0,0.99033823]
[1752812194963,0.61532515,119960.0,119950.0,1.03523514]
[1752812195257,0.61532515,119960.0,119950.0,0.78515101]
[1752812195465,0.68193515,119960.0,119950.0,1.03523514]
[1752812197658,0.64541515,119960.0,119950.0,1.03523514]
[1752812198158,0.61532515,119960.0,119950.0,1.03523514]
[1752812198359,0.61532515,119960.0,119950.0,0.99033823]
[1752812198561,0.61492515,119960.0,119950.0,0.99033823]
[1752812198760,0.61492515,119960.0,119950.0,1.03524718]
[1752812199053,0.61492515,119960.0,119950.0,0.99033823]
[1752812199963,0.01836515,119960.0,119950.0,0.99033823]
[1752812200158,0.61492515,119960.0,119950.0,0.99033823]
[1752812200360,0.61484515,119960.0,119950.0,0.99033823]
[1752812203758,0.61484515,119960.0,119950.0,0.7402541]
[1752812203968,0.61484515,119960.0,119950.0,0.99033823]
[1752812206462,0.1064905,119970.0,119960.0,0.3784404]
[1752812206662,0.4160497,119990.0,119980.0,0.2487026]
[1752812206968,0.51636946,119990.0,119980.0,0.62849673]
[1752812207170,1.11264946,119990.0,119980.0,0.62849673]
[1752812207571,1.07100706,119990.0,119980.0,0.62849673]
[1752812207871,1.14516636,119990.0,119980.0,0.62849673]
[1752812208270,1.14816636,119990.0,119980.0,0.62849673]
[1752812208475,1.15016636,119990.0,119980.0,0.62849673]
[1752812208862,1.51096636,119990.0,119980.0,0.62849673]
[1752812209075,1.10852396,119990.0,119980.0,0.62849673]
[1752812209868,1.46932396,119990.0,119980.0,0.62849673]
[1752812210073,1.10851066,119990.0,119980.0,0.62849673]
[1752812210576,0.94195186,119990.0,119980.0,0.62849673]
[1752812211173,0.28773186,119990.0,119980.0,0.62849673]
[1752812211373,0.75936701,119990.0,119980.0,0.62849673]
[1752812212873,0.75937683,119990.0,119980.0,0.62849673]
[1752812213073,0.75937683,119990.0,119980.0,0.67343949]
[1752812213369,0.03028114,119990.0,119980.0,0.98929673]
[1752812213563,0.02212753,119990.0,119980.0,1.23938086]
[1752812213769,0.02212753,119990.0,119980.0,1.03423949]
[1752812214466,0.02212753,119990.0,119980.0,0.98929673]
[1752812214667,0.05457753,119990.0,119980.0,0.98929673]
[1752812214869,0.09210753,119990.0,119980.0,0.98929673]
[1752812217081,0.02112753,119990.0,119980.0,0.98929673]
[1752812217381,0.004,119990.0,119980.0,0.98929673]
[1752812218485,0.60072,119990.0,119980.0,0.98929673]
[1752812218872,0.004,119990.0,119980.0,0.98929673]
[1752812221083,0.004,119990.0,119980.0,1.03423949]
[1752812225386,0.004,119990.0,119980.0,0.98929673]
[1752812225790,0.004,119990.0,119980.0,1.23938086]
[1752812225984,0.004,119990.0,119980.0,0.98929673]
[1752812230186,0.004,119990.0,119980.0,1.03415012]
[1752812233884,0.004,119990.0,119980.0,1.39495012]
[1752812235489,0.004,119990.0,119980.0,1.35009673]
[1752812237590,0.004,119990.0,119980.0,0.98929673]
[1752812237793,0.06804,119990.0,119980.0,1.03419137]
[1752812237993,0.13153,119990.0,119980.0,1.03419137]
[1752812239085,0.13153,119990.0,119980.0,1.05502137]
[1752812239591,0.13153,119990.0,119980.0,0.44413724]
[1752812239592,0.6588889,119990.0,119980.0,0.44413724]
[1752812239790,0.78387596,119990.0,119980.0,0.02083]
[1752812240091,1.20056396,119990.0,119980.0,0.02083]
[1752812240396,1.20056396,119990.0,119980.0,0.1874028]
[1752812241401,1.21738461,119990.0,119980.0,0.1874028]
[1752812241889,2.36990461,119990.0,119980.0,0.1874028]
[1752812242902,2.36990461,119990.0,119980.0,0.2540728]
[1752812243199,2.11990461,119990.0,119980.0,0.2540728]
[1752812243396,2.36998874,119990.0,119980.0,0.2540728]
[1752812244899,2.36997594,119990.0,119980.0,0.2540728]
[1752812245203,2.11989181,119990.0,119980.0,0.2540728]
[1752812246702,2.11989181,119990.0,119980.0,0.0875]
[1752812247503,2.11989181,119990.0,119980.0,0.2540728]
[1752812248102,2.11989181,119990.0,119980.0,0.3123828]
[1752812248699,2.11989181,119990.0,119980.0,0.0875]
[1752812250404,2.11989181,119990.0,119980.0,0.14581]
[1752812251601,1.95320381,119990.0,119980.0,0.14581]
[1752812251901,2.11989181,119990.0,119980.0,0.14581]
[1752812252499,2.36997594,119990.0,119980.0,0.0875]
[1752812254706,2.11989181,119990.0,119980.0,0.0875]
[1752812254907,2.11989181,119990.0,119980.0,0.14581]
[1752812257710,2.11989181,119990.0,119980.0,0.21682]
[1752812257912,2.11989181,119990.0,119980.0,0.24917]
[1752812258109,2.11989181,119990.0,119980.0,0.4157427]
[1752812258808,2.11995758,119990.0,119980.0,0.21682]
[1752812259412,2.11995758,119990.0,119980.0,0.3833927]
[1752812260607,1.95326958,119990.0,119980.0,0.3833927]
[1752812261319,1.95326958,119990.0,119980.0,0.21682]
[1752812261919,1.95326958,119990.0,119980.0,0.3833927]
[1752812263014,2.13059958,119990.0,119980.0,0.71454683]
[1752812263322,1.28150706,119990.0,119980.0,1.07534683]
[1752812263619,1.75132,119990.0,119980.0,1.07534683]
[1752812263810,1.75128,119990.0,119980.0,1.07534683]
[1752812264413,1.76817064,119990.0,119980.0,0.71454683]
[1752812264619,1.93372944,119990.0,119980.0,0.71454683]
[1752812265422,1.93172944,119990.0,119980.0,0.71454683]
[1752812265626,1.93272944,119990.0,119980.0,0.71454683]
[1752812268522,1.76617064,119990.0,119980.0,0.71454683]
[1752812268723,1.76617064,119990.0,119980.0,1.07534683]
[1752812271327,1.93272944,119990.0,119980.0,1.07534683]
[1752812271529,1.93272944,119990.0,119980.0,0.4644627]
[1752812271730,1.76617064,119990.0,119980.0,0.71454683]
[1752812272532,1.76617064,119990.0,119980.0,1.07534683]
[1752812274236,1.17141064,119990.0,119980.0,1.07534683]
[1752812274536,1.76385064,119990.0,119980.0,1.07534683]
[1752812276236,1.74696,119990.0,119980.0,1.12024147]
[1752812276839,1.15452,119990.0,119980.0,1.12024147]
[1752812277034,1.74656,119990.0,119980.0,1.12024147]
[1752812280633,1.74656,119990.0,119980.0,0.87015734]
[1752812280839,1.74656,119990.0,119980.0,1.12024147]
[1752812284752,0.6582,119990.0,119980.0,1.12024147]
[1752812286642,0.10512036,120010.0,120000.0,0.248105]
[1752812286847,0.10512036,120010.0,120000.0,1.23421326]
[1752812286848,0.71231964,120010.0,120000.0,1.23421326]
[1752812287047,0.71231964,120010.0,120000.0,0.98412913]
[1752812287048,0.87088012,120010.0,120000.0,0.98412913]
[1752812287349,0.28060012,120010.0,120000.0,0.98412913]
[1752812287555,0.87044012,120010.0,120000.0,0.98412913]
[1752812288049,0.92794012,120010.0,120000.0,0.98412913]
[1752812288850,0.90703012,120010.0,120000.0,0.98412913]
[1752812289251,0.92794012,120010.0,120000.0,1.05078913]
[1752812289846,0.93194012,120010.0,120000.0,1.05078913]
[1752812290046,0.93194012,120010.0,120000.0,0.71081913]
[1752812291251,0.93194002,120010.0,120000.0,0.71081913]
[1752812292248,0.87944002,120010.0,120000.0,0.71081913]
[1752812294255,0.91103002,120010.0,120000.0,0.71081913]
[1752812294752,0.93194002,120010.0,120000.0,0.71081913]
[1752812294955,0.91502084,120010.0,120000.0,0.7557297]
[1752812295254,0.91502084,120010.0,120000.0,0.71081913]
[1752812297758,0.93194567,120010.0,120000.0,0.71081913]
[1752812297953,1.09847677,120010.0,120000.0,0.71081913]
[1752812298154,1.09847678,120010.0,120000.0,0.460735]
[1752812298354,1.45927678,120010.0,120000.0,0.71081913]
[1752812298759,1.09847678,120010.0,120000.0,0.71081913]
[1752812298958,0.93194568,120010.0,120000.0,0.71081913]
[1752812299354,1.09847678,120010.0,120000.0,0.71081913]
[1752812299760,0.93194568,120010.0,120000.0,0.71081913]
[1752812301762,0.91502084,120010.0,120000.0,0.71081913]
[1752812302659,1.08155194,120010.0,120000.0,0.71081913]
[1752812303059,0.91502084,120010.0,120000.0,0.71081913]
[1752812303260,0.93193448,120010.0,120000.0,0.71081913]
[1752812306363,1.09846558,120010.0,120000.0,0.71081913]
[1752812306765,0.93193448,120010.0,120000.0,0.71081913]
[1752812309366,0.93193448,120010.0,120000.0,1.07161913]
[1752812309562,0.91102448,120010.0,120000.0,1.07161913]
[1752812310456,0.87943448,120010.0,120000.0,1.07161913]
[1752812312070,0.87944369,120010.0,120000.0,1.07161913]
[1752812312368,0.87944369,120010.0,120000.0,0.71081913]
[1752812313069,0.91103369,120010.0,120000.0,0.71081913]
[1752812313263,0.91103369,120010.0,120000.0,0.7557297]
[1752812314367,0.91103369,120010.0,120000.0,0.6890697]
[1752812315169,0.91103369,120010.0,120000.0,1.0498697]
[1752812316567,1.45732479,120010.0,120000.0,0.17005057]
[1752812316763,1.70740892,120010.0,120000.0,0.2916849]
[1752812317069,1.72169295,120010.0,120000.0,0.6029533]
[1752812317272,1.72169295,120010.0,120000.0,0.32166229]
[1752812317573,1.72169295,120010.0,120000.0,0.6029533]
[1752812317772,1.72169295,120010.0,120000.0,0.19652229]
[1752812318366,1.72169295,120010.0,120000.0,0.4778133]
[1752812318671,1.44040194,120010.0,120000.0,0.4778133]
[1752812318871,1.72169295,120010.0,120000.0,0.5298233]
[1752812319172,1.44040194,120010.0,120000.0,0.24853229]
[1752812319472,1.44040194,120010.0,120000.0,0.31796229]
[1752812320272,1.4572325,120010.0,120000.0,0.2879849]
[1752812321676,1.4572325,120010.0,120000.0,0.1665449]
[1752812321872,1.70726515,120010.0,120000.0,0.1665449]
[1752812322577,1.4572325,120010.0,120000.0,0.1665449]
[1752812322777,1.70726515,120010.0,120000.0,0.1665449]
[1752812324675,0.1665448,120000.0,119990.0,0.4795712]
[1752812324876,0.65399536,120000.0,119990.0,0.4379321]
[1752812325181,0.779592,120000.0,119990.0,0.4379321]
[1752812325880,0.77958144,120000.0,119990.0,0.4379321]
[1752812326579,0.78158144,120000.0,119990.0,0.4379321]
[1752812326782,0.78358144,120000.0,119990.0,0.4379321]
[1752812327582,0.78358144,120000.0,119990.0,0.4711821]
[1752812328076,0.78358144,120000.0,119990.0,0.5169921]
[1752812329482,0.78358144,120000.0,119990.0,0.4379321]
[1752812329985,0.78358144,120000.0,119990.0,0.18811]
[1752812330181,0.2323785,119990.0,119980.0,0.06673]
[1752812330483,1.43072513,119990.0,119980.0,0.2333024]
[1752812330782,1.43072513,119990.0,119980.0,0.06673]
[1752812330985,1.43072513,119990.0,119980.0,0.2333024]
[1752812331282,1.43172513,119990.0,119980.0,0.2333024]
[1752812332285,1.43172513,119990.0,119980.0,0.2887024]
[1752812332482,1.43172513,119990.0,119980.0,0.58126505]
[1752812333083,1.43172513,119990.0,119980.0,0.61791505]
[1752812333581,1.43172513,119990.0,119980.0,0.3678824]
[1752812333984,0.84188513,119990.0,119980.0,0.3678824]
[1752812334182,1.43136513,119990.0,119980.0,0.3678824]
[1752812334382,1.07056513,119990.0,119980.0,0.3678824]
[1752812334582,1.43136513,119990.0,119980.0,0.3678824]
[1752812335083,0.84188513,119990.0,119980.0,0.3678824]
[1752812335283,1.43104513,119990.0,119980.0,0.3678824]
[1752812335483,1.03845513,119990.0,119980.0,0.61791505]
[1752812336082,1.43084513,119990.0,119980.0,0.61791505]
[1752812336283,1.07004513,119990.0,119980.0,0.61791505]
[1752812336880,1.43084513,119990.0,119980.0,0.61791505]
[1752812337084,1.07004513,119990.0,119980.0,0.61791505]
[1752812338479,1.43084513,119990.0,119980.0,0.61791505]
[1752812340780,1.07004513,119990.0,119980.0,0.61791505]
[1752812340976,0.79735667,119990.0,119980.0,0.61791505]
[1752812341179,0.19221667,119990.0,119980.0,0.61791505]
[1752812341383,0.78021667,119990.0,119980.0,0.61791505]
[1752812341785,0.83542667,119990.0,119980.0,0.61791505]
[1752812342380,1.00198447,119990.0,119980.0,0.61791505]
[1752812342783,1.03357447,119990.0,119980.0,0.61791505]
[1752812342980,1.39437447,119990.0,119980.0,0.20131]
[1752812343181,1.4114765,119990.0,119980.0,0.3678817]
[1752812348091,1.0506765,119990.0,119980.0,0.61791435]
[1752812348291,1.0506768,119990.0,119980.0,0.61791435]
[1752812348692,1.4114768,119990.0,119980.0,0.61791435]
[1752812351495,1.0506768,119990.0,119980.0,0.61791435]
[1752812352896,1.4114768,119990.0,119980.0,0.3678817]
[1752812353095,1.4114768,119990.0,119980.0,0.61791435]
[1752812353295,1.0506768,119990.0,119980.0,0.61791435]
[1752812353697,1.4114768,119990.0,119980.0,0.61791435]
[1752812355701,1.4114768,119990.0,119980.0,0.3678817]
[1752812358100,1.0506768,119990.0,119980.0,0.3678817]
[1752812358301,1.0506768,119990.0,119980.0,0.61791435]
[1752812358802,1.4114768,119990.0,119980.0,0.61791435]
[1752812359402,1.4114768,119990.0,119980.0,0.3678817]
[1752812359604,1.4114768,119990.0,119980.0,0.61791435]
[1752812360100,1.0506768,119990.0,119980.0,0.61791435]
[1752812360496,1.06934996,119990.0,119980.0,0.61791435]
[1752812360703,1.06934996,119990.0,119980.0,0.3678817]
[1752812361106,1.43014996,119990.0,119980.0,0.3678817]
[1752812362101,1.06934996,119990.0,119980.0,0.3678817]
[1752812362898,1.06934996,119990.0,119980.0,0.61791435]
[1752812363405,1.43014996,119990.0,119980.0,0.61791435]
[1752812364606,1.43014996,119990.0,119980.0,0.3678817]
[1752812365304,1.68018261,119990.0,119980.0,0.1868717]
[1752812366003,1.68018261,119990.0,119980.0,0.1665717]
[1752812367409,1.68018261,119990.0,119980.0,0.1882917]
[1752812367609,1.68018261,119990.0,119980.0,0.2353817]
[1752812369208,1.43014996,119990.0,119980.0,0.2353817]
[1752812369410,1.43014996,119990.0,119980.0,0.57798435]
[1752812369710,1.06934996,119990.0,119980.0,0.61411435]
[1752812369910,1.03775996,119990.0,119980.0,0.61411435]
[1752812370410,1.06934996,119990.0,119980.0,0.61411435]
[1752812370808,1.43014996,119990.0,119980.0,0.61411435]
[1752812372105,1.06934996,119990.0,119980.0,0.61411435]
[1752812372410,1.43014996,119990.0,119980.0,0.61411435]
[1752812372908,1.43014996,119990.0,119980.0,0.3640817]
[1752812376409,0.48134996,119990.0,119980.0,0.3640817]
[1752812376605,1.06906996,119990.0,119980.0,0.3640817]
[1752812377520,1.06906996,119990.0,119980.0,0.61411435]
[1752812378016,1.42986996,119990.0,119980.0,0.61411435]
[1752812380520,1.42986996,119990.0,119980.0,0.3640817]
[1752812381315,0.81055996,119990.0,119980.0,0.3640817]
[1752812381520,0.81055996,119990.0,119980.0,0.61411435]
[1752812381521,1.03739996,119990.0,119980.0,0.61411435]
[1752812381722,1.06898996,119990.0,119980.0,0.61411435]
[1752812381922,1.42978996,119990.0,119980.0,0.61411435]
[1752812383517,1.67982261,119990.0,119980.0,0.13105]
[1752812383719,1.67982261,119990.0,119980.0,0.2353819]
[1752812383918,0.3147019,119980.0,119970.0,0.13548]
[1752812384121,1.04263658,119980.0,119970.0,0.06667]
[1752812384320,1.1684043,119980.0,119970.0,0.06667]
[1752812385223,1.1684043,119980.0,119970.0,0.06767]
[1752812385818,1.1684043,119980.0,119970.0,0.06667]
[1752812386018,1.1694043,119980.0,119970.0,0.06667]
[1752812387022,0.91937165,119980.0,119970.0,0.06667]
[1752812387220,1.1694043,119980.0,119970.0,0.06667]